bitfinex/quotes_ETHUSD_20241225
["timestamp","ask_amount","ask_price","bid_price","bid_amount"]
[1735111515437,3.67431,3498.1,3497.0,0.7562]
[1735111515791,0.8156,3498.1,3497.0,0.7562]
[1735111515990,3.67429,3498.1,3497.0,3.61577]
[1735111516195,0.8156,3498.1,3497.1,0.7562]
[1735111516383,3.21188979,3498.0,3497.1,0.7562]
[1735111517395,0.35309979,3498.0,3497.1,0.7562]
[1735111518281,3.21187979,3498.0,3497.1,0.7562]
[1735111521224,2.85887,3497.9,3497.1,0.7562]
[1735111522006,0.35309979,3498.0,3497.1,0.7562]
[1735111522206,5.57403792,3498.2,3497.2,0.7562]
[1735111522406,2.0342282,3498.4,3497.3,0.7562]
[1735111522407,4.8926882,3498.4,3497.3,0.7562]
[1735111522738,1.22025579,3499.1,3497.3,0.7562]
[1735111522739,2.85805,3498.9,3497.5,0.7562]
[1735111522883,4.07814579,3499.1,3498.1,0.7562]
[1735111523084,2.85796,3499.0,3498.1,0.7562]
[1735111524615,4.22025579,3499.1,3498.1,2.85868]
[1735111524816,4.22025579,3499.1,3498.2,0.7562]
[1735111527997,1.22025579,3499.1,3498.2,0.7562]
[1735111531156,2.85781,3499.2,3498.2,0.7562]
[1735111532436,2.85791,3499.1,3498.2,0.7562]
[1735111532678,0.8217,3499.2,3498.2,0.7562]
[1735111533003,2.85812,3498.8,3498.2,0.7562]
[1735111533704,2.85798,3499.0,3498.2,0.7562]
[1735111534053,3.43236513,3499.3,3498.2,2.85861]
[1735111534232,3.28320651,3499.2,3498.3,0.7925]
[1735111535477,0.42540651,3499.2,3498.3,0.7925]
[1735111535681,2.85788,3499.1,3498.3,0.7925]
[1735111535982,0.8217,3498.9,3498.3,0.7925]
[1735111536737,2.8582,3498.7,3498.3,0.7925]
[1735111537042,2.85807,3498.9,3498.3,0.7925]
[1735111537354,0.667977,3498.8,3498.3,0.7925]
[1735111538770,2.85813,3498.8,3498.3,0.7925]
[1735111539184,0.8217,3499.1,3498.3,0.7925]
[1735111539343,2.85797,3499.0,3498.3,0.7925]
[1735111540239,0.8217,3499.1,3498.3,0.7925]
[1735111540438,0.8217,3499.1,3497.7,0.7925]
[1735111540439,3.55,3498.9,3497.7,0.7925]
[1735111540767,3.55,3498.9,3497.0,10.00622547]
[1735111540768,2.85885,3497.9,3497.2,0.7925]
[1735111541081,2.85891,3497.9,3497.2,0.7925]
[1735111543490,3.0,3498.2,3497.2,0.7925]
[1735111543777,0.7778,3497.8,3497.0,0.8116]
[1735111544003,2.8593,3497.4,3497.0,0.8116]
[1735111544281,0.28593,3497.3,3497.0,0.8116]
[1735111544978,2.85919,3497.5,3497.0,0.8116]
[1735111549290,3.7778,3497.8,3497.0,0.8116]
[1735111549492,3.0,3497.7,3496.3,0.8116]
[1735111549648,2.85932,3497.4,3496.3,3.67176]
[1735111550450,2.85932,3497.4,3496.4,0.8116]
[1735111550649,3.445252,3497.4,3496.5,0.8116]
[1735111550902,2.85932,3497.4,3496.5,0.8116]
[1735111553356,3.0,3497.7,3496.5,0.8116]
[1735111553552,2.85945,3497.2,3496.5,0.8116]
[1735111554057,2.85601075,3497.2,3496.5,0.8116]
[1735111554599,1.06340107,3497.2,3496.5,0.8116]
[1735111554753,2.85968,3496.9,3496.5,0.8116]
[1735111555601,1.06340107,3497.2,3496.5,0.8116]
[1735111555901,2.8596,3497.0,3496.5,0.8116]
[1735111557047,1.06340107,3497.2,3496.5,0.8116]
[1735111557255,2.85984,3496.7,3496.5,0.8116]
[1735111557491,2.85984,3496.7,3495.9,0.8226]
[1735111559358,2.85955,3497.1,3495.9,0.8226]
[1735111559359,2.86001,3496.5,3495.9,0.8226]
[1735111560472,2.86007,3496.5,3495.9,0.8226]
[1735111560877,2.8601,3496.4,3495.9,0.8226]
[1735111561081,0.28601,3496.3,3495.9,0.8226]
[1735111561610,3.0,3496.6,3495.8,0.1738513]
[1735111561761,2.86042,3496.0,3495.8,0.1738513]
[1735111562153,2.86049,3495.9,3495.8,0.1738513]
[1735111562412,3.62999,3495.9,3495.8,0.1738513]
[1735111562569,6.62999,3495.9,3495.8,0.1738513]
[1735111562778,7.85055879,3495.9,3495.8,0.1738513]
[1735111563573,8.98228012,3495.9,3495.8,0.1738513]
[1735111569329,8.98228012,3495.9,3495.8,1.3e-06]
[1735111571243,2.86202,3494.1,3493.7,0.02862058]
[1735111571391,2.86213,3493.9,3493.4,0.8226]
[1735111572135,0.286202,3494.0,3493.1,0.8179]
[1735111572136,2.86231,3493.7,3493.1,0.8179]
[1735111573692,3.43375167,3493.7,3493.1,0.8179]
[1735111574239,0.57144167,3493.7,3493.1,0.8179]
[1735111574410,2.86239,3493.6,3493.1,0.8179]
[1735111574938,0.34338317,3493.5,3493.1,0.8179]
[1735111575526,2.8627,3493.2,3493.1,0.01]
[1735111576048,2.86263,3493.3,3493.1,0.01]
[1735111576500,2.8627,3493.2,3493.1,0.01]
[1735111578048,3.4127,3493.2,3493.1,0.01]
[1735111579030,0.55,3493.6,3493.1,0.8179]
[1735111579271,3.57144167,3493.7,3493.1,0.8179]
[1735111579479,0.286202,3494.0,3493.1,0.8179]
[1735111579662,3.0,3493.7,3493.1,0.8179]
[1735111581070,5.86231,3493.7,3493.1,0.8179]
[1735111582933,3.0,3493.8,3493.1,0.8179]
[1735111583431,0.5778597,3493.9,3493.1,0.8179]
[1735111583638,3.0,3493.7,3493.1,0.8179]
[1735111583965,0.64401097,3493.6,3493.1,0.8179]
[1735111586282,0.5778597,3493.9,3493.1,0.8179]
[1735111587006,0.286202,3494.0,3493.1,0.8179]
[1735111587217,2.86221,3493.8,3493.1,0.8179]
[1735111587711,2.86237,3493.7,3493.1,0.8179]
[1735111587915,0.87361282,3494.0,3493.1,0.8179]
[1735111588229,2.86241,3493.6,3493.1,0.8179]
[1735111588511,3.53699792,3493.8,3493.1,0.8179]
[1735111588669,2.86237,3493.6,3493.1,0.8179]
[1735111588870,2.86267,3493.3,3493.1,0.8179]
[1735111589813,2.8627,3493.2,3493.1,0.01]
[1735111589969,3.14897,3493.2,3493.1,0.01]
[1735111592074,6.97057,3493.2,3493.1,0.01]
[1735111592780,7.52057,3493.2,3493.1,0.01]
[1735111594290,8.1065235,3493.2,3493.1,0.01]
[1735111595296,6.97057,3493.2,3493.1,0.01]
[1735111595532,6.14897,3493.2,3493.1,0.01]
[1735111599744,6.69897,3493.2,3493.1,0.01]
[1735111605459,7.48597,3493.2,3493.1,0.01]
[1735111607414,6.14897,3493.2,3493.1,0.01]
[1735111607769,3.14897,3493.2,3493.1,0.01]
[1735111608132,0.28627,3493.2,3493.1,0.01]
[1735111608342,0.58606818,3493.3,3493.1,0.7922]
[1735111608739,2.8627,3493.2,3493.1,0.7922]
[1735111609348,2.8627,3493.2,3493.1,0.01]
[1735111609975,5.8627,3493.2,3493.1,0.01]
[1735111611927,6.4127,3493.2,3493.1,0.01]
[1735111612239,7.74906661,3493.2,3493.1,0.01]
[1735111613284,7.19906661,3493.2,3493.1,0.01]
[1735111617187,1.33636661,3493.2,3493.1,0.8164]
[1735111617393,1.1846153,3493.6,3493.1,0.8164]
[1735111617680,1.1846153,3493.6,3493.5,0.8064]
[1735111618187,1.77692295,3493.7,3493.5,0.8064]
[1735111620451,2.86196,3494.1,3493.5,0.8064]
[1735111623145,1.145946,3494.3,3493.5,0.8064]
[1735111623348,2.86188,3494.2,3493.5,0.8064]
[1735111623764,2.86256,3493.4,3493.1,1.19641503]
[1735111624171,2.86256,3493.4,3493.1,0.01]
[1735111624335,2.8627,3493.2,3493.1,0.01]
[1735111624936,5.8627,3493.2,3493.1,0.01]
[1735111628193,1.56427545,3493.4,3493.1,0.01]
[1735111628194,2.86265,3493.3,3493.1,0.01]
[1735111628361,0.364246,3493.4,3493.1,0.01]
[1735111628681,0.51328315,3493.3,3493.1,0.01]
[1735111629338,3.51328315,3493.3,3493.1,0.01]
[1735111629539,3.0,3493.2,3493.1,0.01]
[1735111630081,0.51328315,3493.3,3493.1,0.01]
[1735111630285,0.364246,3493.4,3493.1,0.01]
[1735111630440,0.79952915,3493.3,3493.1,0.01]
[1735111630790,3.79952915,3493.3,3493.1,0.01]
[1735111633492,2.8627,3493.2,3493.1,0.01]
[1735111633980,5.8627,3493.2,3493.1,0.01]
[1735111636668,0.79952915,3493.3,3493.1,0.01]
[1735111636669,3.79952915,3493.3,3493.1,0.01]
[1735111636876,1.20002945,3493.5,3493.1,0.01]
[1735111637958,4.06252945,3493.5,3493.1,0.01]
[1735111638580,2.86257,3493.4,3493.1,0.01]
[1735111639263,0.7676,3493.5,3493.1,0.01]
[1735111639619,2.8627,3493.2,3493.1,0.01]
[1735111639815,3.511975,3493.2,3493.1,0.01]
[1735111641117,4.658159,3493.2,3493.1,0.01]
[1735111655938,7.658159,3493.2,3493.1,0.01]
[1735111658049,4.658159,3493.2,3493.1,0.01]
[1735111660461,5.410359,3493.2,3493.1,0.01]
[1735111661748,4.658159,3493.2,3493.1,0.01]
[1735111670304,5.85818845,3493.2,3493.1,0.01]
[1735111671364,6.43508195,3493.2,3493.1,0.01]
[1735111672298,4.658159,3493.2,3493.1,0.01]
[1735111676793,5.85984412,3493.2,3493.1,0.01]
[1735111677923,4.658159,3493.2,3493.1,0.01]
[1735111680932,1.146184,3493.2,3493.1,0.8122]
[1735111681075,1.77692295,3493.3,3493.1,3.67495]
[1735111681272,1.77692295,3493.3,3493.2,0.8022]
[1735111682209,4.10745826,3493.6,3493.3,0.8022]
[1735111682210,1.14592,3493.6,3493.3,0.8022]
[1735111683036,1.14592,3493.6,3493.3,2.86262]
[1735111683330,1.20160348,3494.1,3493.6,0.8022]
[1735111683824,1.145789,3494.0,3493.6,0.8022]
[1735111684035,1.20160348,3494.1,3493.7,0.8022]
[1735111684819,1.145735,3494.1,3493.8,0.8022]
[1735111685288,1.145735,3494.1,3493.9,0.8022]
[1735111685474,1.20160348,3494.5,3494.2,2.86188]
[1735111685708,1.20160348,3494.5,3494.3,3.66399]
[1735111686027,1.20160348,3494.5,3494.4,0.8022]
[1735111686181,1.20160348,3494.6,3494.4,0.8022]
[1735111687630,1.20160348,3494.6,3494.5,3.66383]
[1735111688236,1.20160348,3495.6,3494.7,0.8022]
[1735111688393,1.20160348,3495.6,3494.9,2.86128]
[1735111688594,1.20160348,3495.6,3495.0,2.86121]
[1735111688793,1.20160348,3495.6,3495.1,0.8022]
[1735111689839,2.86058,3495.8,3495.1,0.8022]
[1735111690354,1.145352,3495.6,3495.1,0.8022]
[1735111695946,1.955452,3495.6,3494.2,0.7551]
[1735111696086,2.4509972,3495.6,3494.2,0.7551]
[1735111696539,2.4509972,3495.6,3494.4,0.7551]
[1735111696745,3.8101,3495.4,3494.4,0.7551]
[1735111697036,2.86166,3494.5,3494.1,0.7551]
[1735111697545,2.86166,3494.5,3493.8,0.7551]
[1735111698105,2.86149,3494.7,3493.8,0.7551]
[1735111698787,1.6408972,3495.6,3493.9,0.55]
[1735111698986,1.145352,3495.6,3494.4,0.7551]
[1735111699247,1.145352,3495.6,3494.8,0.7551]
[1735111700638,1.145352,3495.6,3494.8,3.61647]
[1735111700950,1.145316,3495.6,3494.8,3.61647]
[1735111701844,1.145316,3495.6,3494.9,0.764]
[1735111701997,3.787,3496.3,3495.3,0.764]
[1735111702198,1.145203,3496.2,3495.3,3.62496]
[1735111702500,1.145203,3496.2,3495.4,0.02860616]
[1735111703942,2.86041,3496.0,3495.3,0.764]
[1735111705933,2.86059,3495.8,3495.3,0.764]
[1735111706130,3.225349,3495.8,3495.3,0.764]
[1735111706505,2.86068,3495.7,3495.3,0.764]
[1735111706776,2.86068,3495.7,3494.8,0.764]
[1735111708180,0.364759,3495.8,3494.8,0.764]
[1735111708789,3.64751,3495.9,3494.8,0.764]
[1735111709490,1.145203,3496.2,3495.1,0.7689]
[1735111709636,4.145203,3496.2,3495.4,0.7689]
[1735111710510,3.0,3496.2,3495.4,0.7689]
[1735111712988,3.42460055,3496.5,3495.4,3.62977]
[1735111713191,3.0,3496.4,3495.5,0.7689]
[1735111713795,3.0,3496.3,3495.5,0.7689]
[1735111714941,2.86017,3496.3,3495.5,0.7689]
[1735111715142,3.0,3496.2,3495.5,0.7689]
[1735111717975,2.86017,3496.3,3495.5,0.7689]
[1735111719785,0.56455055,3496.5,3495.5,0.7689]
[1735111719989,2.86027,3496.2,3495.5,0.7689]
[1735111720543,2.8604,3496.1,3495.5,0.7689]
[1735111721646,0.7541,3496.4,3495.2,0.8184]
[1735111721978,2.86064,3495.8,3495.2,0.8184]
[1735111723591,0.8275,3496.1,3495.2,0.8184]
[1735111723897,2.86043,3496.0,3495.2,0.8184]
[1735111726382,0.368793,3496.0,3495.2,0.8184]
[1735111726550,2.86059,3495.8,3495.2,0.8184]
[1735111726748,2.86062,3495.8,3495.2,0.8184]
[1735111727363,0.8275,3496.1,3494.7,0.8184]
[1735111727569,0.8275,3495.2,3494.7,0.8184]
[1735111727768,0.8275,3495.2,3494.5,1.20194498]
[1735111727769,2.86148,3494.7,3494.5,1.20194498]
[1735111728217,2.86155,3494.6,3494.5,1.20194498]
[1735111728922,2.86155,3494.6,3494.1,0.8184]
[1735111729419,2.86138,3494.9,3494.1,0.8184]
[1735111729630,3.0,3494.8,3494.1,0.8184]
[1735111730722,3.0,3494.9,3494.1,0.8184]
[1735111731525,4.20160348,3495.3,3494.2,0.8184]
[1735111731729,4.20160348,3495.3,3494.3,0.8184]
[1735111732028,1.20160348,3495.3,3494.5,2.86156]
[1735111732196,1.20160348,3495.3,3494.6,0.8184]
[1735111732852,0.8208517,3495.3,3494.6,0.8184]
[1735111732982,2.86109,3495.2,3494.6,0.8184]
[1735111733182,2.86073,3495.6,3494.6,0.8184]
[1735111733183,2.86118,3495.1,3494.6,0.8184]
[1735111733723,2.86118,3495.1,3494.1,1.20194498]
[1735111733724,3.8275,3495.6,3494.0,1.20194498]
[1735111734027,2.86133,3494.9,3494.2,0.8184]
[1735111736728,3.147573,3494.8,3494.2,0.8184]
[1735111737165,0.286133,3494.8,3494.2,0.8184]
[1735111737320,0.769,3495.2,3494.2,0.8184]
[1735111737515,2.86129,3495.0,3494.2,0.8184]
[1735111738163,0.769,3495.2,3494.2,0.8184]
[1735111738366,4.20160348,3495.4,3494.2,0.8184]
[1735111738668,2.8611,3495.2,3494.2,0.8184]
[1735111739367,2.8611,3495.2,3494.4,0.822]
[1735111739756,1.20160348,3495.4,3494.6,0.822]
[1735111739951,3.0,3495.5,3494.8,0.822]
[1735111741264,2.86083,3495.5,3494.8,0.822]
[1735111742370,2.86068,3495.7,3494.8,0.822]
[1735111744502,3.20334464,3495.7,3494.8,0.822]
[1735111745610,2.86073,3495.6,3494.8,0.822]
[1735111747406,0.34266464,3495.7,3494.8,0.822]
[1735111748875,3.20333464,3495.7,3494.8,0.822]
[1735111751918,2.86076,3495.6,3494.8,0.822]
[1735111752064,0.32034246,3495.5,3494.8,0.822]
[1735111755425,1.76756985,3495.9,3494.4,0.02861135]
[1735111755426,1.20160348,3495.9,3495.1,0.7917]
[1735111756802,2.86041,3496.0,3495.1,0.7917]
[1735111758291,2.8605,3495.9,3495.1,0.7917]
[1735111760535,0.56725438,3496.1,3495.1,0.7917]
[1735111760737,2.8607,3495.7,3495.1,0.7917]
[1735111760906,0.28607,3495.6,3495.1,0.7917]
[1735111762336,2.86049,3495.9,3495.1,0.7917]
[1735111762840,1.20160348,3496.0,3495.1,0.7917]
[1735111763141,1.20160348,3496.0,3495.0,0.7917]
[1735111763820,1.20160348,3496.0,3495.2,0.7917]
[1735111764149,2.86034,3496.1,3495.2,0.7917]
[1735111764292,3.50485832,3496.1,3495.2,0.7917]
[1735111764642,3.50485832,3496.1,3495.1,2.8897376]
[1735111764643,2.86019,3496.3,3495.3,3.65268]
[1735111764944,2.86009,3496.4,3495.5,0.7917]
[1735111765143,1.20160348,3496.5,3495.7,0.7917]
[1735111766042,4.06161348,3496.5,3495.7,0.7917]
[1735111766210,3.7625967,3496.5,3495.7,0.7917]
[1735111766407,1.20160348,3496.7,3495.7,0.7917]
[1735111766736,1.20160348,3496.7,3496.2,0.8142]
[1735111767510,1.20160348,3496.7,3496.3,2.86016]
[1735111767844,1.20160348,3497.1,3496.5,0.8142]
[1735111768040,1.20160348,3497.1,3496.6,0.8142]
[1735111769696,1.144804,3497.3,3496.6,0.8142]
[1735111769891,1.60179142,3497.3,3496.6,0.8142]
[1735111770143,2.8595,3497.2,3496.6,0.8142]
[1735111770306,2.85953,3497.1,3496.6,0.8142]
[1735111770514,4.004154,3497.3,3496.6,0.8142]
[1735111771526,2.85952,3497.1,3496.6,0.8142]
[1735111772096,1.144804,3497.3,3496.6,0.8142]
[1735111779680,2.85943,3497.2,3496.6,0.8142]
[1735111781773,1.67767542,3497.3,3496.6,0.8142]
[1735111781955,2.85972,3496.9,3496.3,0.8019]
[1735111783190,3.66373,3497.2,3496.3,0.8019]
[1735111783371,2.85978,3496.8,3496.3,0.8019]
[1735111783959,2.85991,3496.7,3496.3,0.8019]
[1735111785690,2.85968,3496.9,3496.3,0.8019]
[1735111787444,1.144804,3497.3,3496.4,0.8019]
[1735111787645,1.144804,3497.3,3496.3,0.8019]
[1735111787844,1.144804,3497.3,3496.5,0.8019]
[1735111788288,1.144804,3497.3,3496.6,0.02859613]
[1735111788460,1.144804,3497.3,3496.6,0.8019]
[1735111788863,1.144804,3497.3,3496.7,0.8019]
[1735111792226,0.787,3497.2,3496.7,0.8019]
[1735111792397,2.85957,3497.1,3496.7,0.8019]
[1735111793414,1.144804,3497.3,3496.7,0.8019]
[1735111793749,4.004174,3497.3,3496.7,0.8019]
[1735111794543,2.85943,3497.2,3496.7,0.8019]
[1735111794744,0.4791234,3497.2,3496.7,0.8019]
[1735111795042,2.85951,3497.1,3496.7,0.8019]
[1735111795196,1.144804,3497.3,3496.7,0.8019]
[1735111795395,4.144804,3497.3,3496.7,0.8019]
[1735111797407,1.144804,3497.3,3496.7,0.8019]
[1735111800418,2.85943,3497.2,3496.7,0.8019]
[1735111800768,2.85992,3496.6,3495.9,0.7573]
[1735111802002,2.85978,3496.8,3495.9,0.78590184]
[1735111802215,1.20160348,3497.2,3496.4,0.7573]
[1735111803051,4.06103348,3497.2,3496.4,0.7573]
[1735111803348,1.3119491,3497.2,3496.4,0.7573]
[1735111803690,2.85966,3497.0,3496.4,0.7573]
[1735111804196,2.85974,3496.9,3496.4,0.7573]
[1735111804398,0.7675,3497.1,3496.4,0.7573]
[1735111804595,2.85979,3496.8,3495.8,0.7573]
[1735111806048,2.85961,3497.0,3495.9,0.7573]
[1735111806249,2.85968,3496.9,3496.1,0.7573]
[1735111806450,2.85951,3497.1,3496.1,0.7573]
[1735111806601,2.85951,3497.1,3496.2,0.7573]
[1735111808264,3.85787404,3497.0,3496.2,0.7573]
[1735111808587,0.99828404,3497.0,3496.2,0.7573]
[1735111808705,2.85975,3496.8,3496.2,0.7573]
[1735111809338,3.85789404,3497.0,3496.2,0.7573]
[1735111809502,2.85971,3496.9,3496.2,0.7573]
[1735111809706,4.94402323,3496.9,3496.2,0.7573]
[1735111810901,3.74241975,3496.9,3496.2,0.7573]
[1735111811110,2.85982,3496.8,3496.2,0.7573]
[1735111811337,3.74238975,3496.9,3496.2,0.7573]
[1735111811502,2.86,3496.5,3496.2,0.7573]
[1735111811702,2.85992,3496.6,3495.9,0.7934]
[1735111811902,0.7789,3496.7,3495.8,1.20194498]
[1735111812335,2.86046,3496.0,3495.8,1.20194498]
[1735111812738,0.7789,3496.2,3495.8,1.20194498]
[1735111812914,1.442801,3496.2,3495.8,1.20194498]
[1735111813322,2.64440448,3496.2,3495.6,0.7934]
[1735111814013,2.86042,3496.0,3495.6,0.7934]
[1735111815128,2.64440448,3496.2,3495.1,0.7934]
[1735111815324,0.79842471,3496.1,3495.1,0.7934]
[1735111815555,2.86041,3496.0,3495.1,0.7934]
[1735111815714,2.86072,3495.7,3495.1,0.7934]
[1735111817039,4.20160348,3496.3,3495.3,0.7934]
[1735111817242,1.20160348,3496.3,3495.6,0.7934]
[1735111817472,1.20160348,3496.0,3495.3,0.7934]
[1735111817672,1.20160348,3496.0,3495.4,0.7934]
[1735111818372,4.06201348,3496.0,3495.4,0.7934]
[1735111818544,2.86053,3495.9,3495.4,0.7934]
[1735111819588,0.5347757,3496.0,3495.4,0.7934]
[1735111819784,2.86035,3496.1,3495.4,0.7934]
[1735111820085,2.86019,3496.3,3495.4,0.7934]
[1735111821051,1.98050348,3496.4,3495.4,0.7934]
[1735111821052,2.86025,3496.2,3495.4,0.7934]
[1735111821272,2.86028,3496.2,3495.4,0.7934]
[1735111821892,2.86035,3496.1,3495.4,0.7934]
[1735111822545,0.48408535,3496.1,3495.4,0.7934]
[1735111822744,2.8606,3495.8,3495.4,0.7934]
[1735111824589,0.48408535,3496.1,3495.4,0.7934]
[1735111824791,2.8604,3496.1,3495.4,0.7934]
[1735111826488,0.7789,3496.4,3495.4,0.7934]
[1735111826692,2.86036,3496.1,3495.4,0.7934]
[1735111826999,2.86043,3496.0,3495.4,0.7934]
[1735111828415,2.8605,3495.9,3495.4,0.7934]
[1735111830905,3.7615,3496.2,3495.4,0.7934]
[1735111831240,2.86058,3495.8,3495.4,0.7934]
[1735111832855,2.86075,3495.6,3495.4,0.7934]
[1735111834753,0.286075,3495.6,3495.1,0.8096]
[1735111834992,2.86071,3495.7,3495.1,0.8096]
[1735111835100,2.86074,3495.6,3495.1,0.8096]
[1735111835660,0.7615,3495.7,3494.6,0.8096]
[1735111835797,0.57918706,3495.4,3494.6,0.8096]
[1735111835998,2.86111,3495.2,3494.6,0.8096]
[1735111837133,0.57918706,3495.4,3494.6,0.8096]
[1735111837348,2.86106,3495.2,3494.6,0.8096]
[1735111837553,2.86115,3495.1,3494.6,0.8096]
[1735111839024,0.34399671,3495.3,3494.6,0.8096]
[1735111839350,2.86119,3495.1,3494.6,0.8096]
[1735111839652,2.86126,3495.0,3494.6,0.8096]
[1735111840263,0.7615,3495.2,3494.6,0.8096]
[1735111840421,2.86139,3494.8,3494.6,0.8096]
[1735111840608,2.86147,3494.7,3494.6,0.8096]
[1735111841449,2.86147,3494.7,3494.1,0.8096]
[1735111845174,0.7505,3494.6,3494.1,0.8096]
[1735111845332,2.86174,3494.4,3493.9,0.8304]
[1735111846317,3.61208,3494.6,3493.9,0.8304]
[1735111846478,2.86141,3494.8,3493.9,0.8304]
[1735111847778,2.86125,3495.0,3493.9,0.8304]
[1735111847934,3.47092702,3495.0,3493.9,0.8304]
[1735111848638,3.47092702,3495.0,3493.9,3.69251]
[1735111849674,3.47092702,3495.0,3493.9,2.86211]
[1735111849884,2.86131,3494.9,3494.0,0.8304]
[1735111851525,4.06236348,3495.6,3494.5,0.8304]
[1735111851818,4.59713918,3495.6,3494.6,0.85901165]
[1735111852014,1.73637918,3495.6,3494.6,0.85901165]
[1735111852310,2.86085,3495.5,3494.6,0.8304]
[1735111852516,2.86085,3495.5,3494.7,0.02861166]
[1735111852817,2.86085,3495.5,3494.8,0.8304]
[1735111853832,2.86091,3495.4,3494.8,0.8304]
[1735111854016,2.86109,3495.2,3494.8,0.8304]
[1735111856585,1.145466,3495.1,3494.8,0.8304]
[1735111858505,4.006656,3495.1,3494.8,0.8304]
[1735111860174,4.9725122,3495.1,3494.2,0.8041]
[1735111860369,4.006656,3495.1,3494.2,0.8041]
[1735111860716,1.145466,3495.1,3494.4,0.8041]
[1735111860918,1.145466,3495.1,3494.5,0.8041]
[1735111861072,1.145466,3495.1,3494.8,0.8041]
[1735111861271,1.145466,3495.1,3494.8,3.66548]
[1735111861487,1.145466,3495.1,3494.9,1.3541]
[1735111861688,1.145466,3495.1,3494.9,0.55]
[1735111861934,1.145466,3495.1,3495.0,0.8041]
[1735111863435,1.145466,3495.1,3494.6,0.8041]
[1735111863941,4.006676,3495.1,3494.6,0.8041]
[1735111864492,1.5461336,3495.1,3494.0,2.37283006]
[1735111864689,2.86149,3494.7,3494.2,2.58372254]
[1735111864889,2.86162,3494.6,3494.2,0.8041]
[1735111865090,2.86162,3494.6,3493.9,2.00604498]
[1735111865890,0.7725,3495.0,3494.0,0.02861795]
[1735111866118,1.145466,3495.1,3494.0,2.86203]
[1735111866324,1.145466,3495.1,3494.2,0.8041]
[1735111866325,4.145466,3495.1,3494.2,0.8041]
[1735111867196,1.145466,3495.1,3494.3,0.83271356]
[1735111870049,1.145466,3495.1,3494.5,0.8193]
[1735111879199,4.006646,3495.1,3494.5,0.8193]
[1735111881537,1.145466,3495.1,3494.5,0.8193]
[1735111881898,1.145466,3495.1,3494.9,0.55]
[1735111882147,1.145466,3495.1,3495.0,4.21883]
[1735111883254,1.145466,3495.1,3495.0,7.89788391]
[1735111887216,1.145466,3495.1,3495.0,6.69593893]
[1735111890547,3.0,3496.2,3495.1,3.41111]
[1735111890746,0.96434164,3496.1,3495.1,3.43971555]
[1735111891059,0.96434164,3496.1,3495.1,3.41111]
[1735111891414,2.10953964,3496.1,3495.1,3.41111]
[1735111891691,4.96988964,3496.1,3495.1,3.41111]
[1735111894566,2.10953964,3496.1,3495.2,2.86102]
[1735111894768,1.145198,3496.1,3495.2,2.86102]
[1735111895322,1.145198,3496.1,3495.3,0.7625]
[1735111897403,1.145198,3496.1,3495.1,0.55]
[1735111897404,1.20160348,3496.3,3495.8,0.7625]
[1735111897566,1.20160348,3496.3,3496.1,0.7625]
[1735111898392,1.20160348,3496.3,3496.2,2.86024]
[1735111898588,1.20160348,3496.3,3496.2,7.17274]
[1735111899109,1.20160348,3497.1,3496.7,0.7625]
[1735111900506,1.144681,3497.5,3496.7,0.7625]
[1735111900704,1.144681,3497.5,3496.7,3.62231]
[1735111902306,1.144681,3497.5,3496.8,0.02859281]
[1735111902513,0.7803,3497.8,3496.8,0.02859281]
[1735111902821,1.144627,3497.7,3497.0,2.85954]
[1735111904452,1.144627,3497.7,3496.9,0.8131]
[1735111907648,1.144627,3497.7,3497.1,0.8131]
[1735111907985,1.144418,3498.3,3497.4,3.67236]
[1735111908130,1.144418,3498.3,3497.4,3.70094623]
[1735111908744,1.144418,3498.3,3497.4,0.84168623]
[1735111908976,1.144418,3498.3,3497.4,0.8131]
[1735111909179,4.002948,3498.3,3497.4,0.8131]
[1735111909561,4.002948,3498.3,3497.5,0.55]
[1735111909883,1.144418,3498.3,3497.5,0.55]
[1735111910104,2.8583,3498.6,3497.6,0.8131]
[1735111910239,4.002678,3498.6,3497.7,0.55]
[1735111911496,1.144378,3498.6,3497.7,0.55]
[1735111911630,2.85845,3498.4,3497.7,0.55]
[1735111912757,1.144378,3498.6,3497.7,3.26539792]
[1735111912936,2.85805,3498.9,3497.9,0.55]
[1735111913131,1.144262,3498.9,3498.1,0.55]
[1735111913367,1.144262,3498.9,3498.2,0.8131]
[1735111913637,2.85789,3499.1,3498.3,0.55]
[1735111913832,4.002064,3499.1,3498.3,0.55]
[1735111914889,2.85789,3499.1,3498.3,0.55]
[1735111915452,0.7538,3499.3,3498.4,0.02857982]
[1735111915687,3.61153,3499.3,3498.3,0.55]
[1735111916006,3.61153,3499.3,3498.5,0.55]
[1735111916407,3.0,3499.9,3498.5,0.55]
[1735111916587,0.7538,3499.7,3498.5,0.57857795]
[1735111916789,2.85755,3499.5,3498.5,0.57857795]
[1735111916950,3.43626132,3499.5,3498.5,0.57857795]
[1735111917155,0.41900613,3499.4,3498.6,0.8043]
[1735111917467,1.144092,3499.4,3498.7,0.57857791]
[1735111917691,3.0,3499.6,3498.7,0.55]
[1735111918056,4.144053,3499.6,3498.7,0.55]
[1735111918469,4.144053,3499.6,3498.9,0.8043]
[1735111919013,1.144053,3499.6,3498.9,0.8043]
[1735111919320,1.144053,3499.6,3499.0,0.02857593]
[1735111919516,1.144053,3499.6,3498.9,0.8043]
[1735111919664,4.001543,3499.6,3498.9,0.8043]
[1735111921220,1.144053,3499.6,3498.9,0.8043]
[1735111921385,2.85731,3499.8,3498.9,0.8043]
[1735111921977,1.143984,3499.7,3498.9,0.8043]